bitfinex/quotes_ETHUSD_20260108
["timestamp","ask_amount","ask_price","bid_price","bid_amount"]
[1767901307723,4.99128876,3119.9,3119.1,0.94645393]
[1767901307935,4.99128876,3119.9,3119.1,4.15249275]
[1767901308541,0.9450445,3119.8,3119.1,3.20603882]
[1767901308745,0.9450445,3119.8,3119.1,3.94211095]
[1767901308967,4.15038082,3119.8,3119.1,3.94211095]
[1767901309167,4.15038082,3119.8,3119.1,0.73607213]
[1767901309344,0.9450445,3119.7,3119.0,0.94845393]
[1767901309657,0.9450445,3119.7,3119.1,3.20604582]
[1767901309839,4.04628246,3119.9,3119.1,3.20604582]
[1767901310047,0.841,3119.9,3119.2,0.94645393]
[1767901310359,4.14989683,3120.3,3119.6,3.82557323]
[1767901310753,7.35474916,3120.3,3119.6,0.94645393]
[1767901312561,4.14989683,3120.3,3119.6,0.94645393]
[1767901313079,7.35474916,3120.3,3119.6,0.94645393]
[1767901313275,7.35474916,3120.3,3119.4,0.94645393]
[1767901313276,3.20502547,3120.1,3119.4,0.94645393]
[1767901313437,3.20482004,3120.3,3119.5,1.36167683]
[1767901313774,3.20482004,3120.3,3119.6,0.94645393]
[1767901314474,6.40964008,3120.3,3119.6,0.94645393]
[1767901314630,7.35468458,3120.3,3119.6,0.94645393]
[1767901315475,0.9450445,3120.2,3119.5,0.4152229]
[1767901316688,0.002,3120.0,3119.5,0.4152229]
[1767901316850,0.9450445,3119.8,3119.0,0.94845393]
[1767901317061,0.9450445,3119.8,3119.0,0.002]
[1767901317472,0.9450445,3119.6,3119.0,0.002]
[1767901317783,3.20543642,3119.7,3119.0,0.002]
[1767901318168,0.9450445,3119.8,3119.1,0.94645393]
[1767901319171,4.15038103,3119.8,3119.1,0.94645393]
[1767901320276,0.9450445,3119.7,3119.0,3.20806093]
[1767901320479,0.9450445,3119.7,3119.0,0.002]
[1767901320779,0.9450445,3119.7,3119.0,3.20809305]
[1767901321280,0.9450445,3119.7,3119.1,3.20603352]
[1767901321598,0.841,3119.9,3119.2,0.94645393]
[1767901321745,0.841,3119.9,3119.2,4.15239986]
[1767901321944,4.04623213,3119.9,3119.3,0.94645393]
[1767901322279,4.968571,3119.9,3119.1,7.76765099]
[1767901322603,4.968571,3119.9,3119.2,3.20591918]
[1767901323271,1.76333887,3119.9,3119.2,3.20591918]
[1767901324549,4.96858909,3119.9,3119.1,4.88852553]
[1767901325170,4.96858909,3119.9,3119.2,0.80966558]
[1767901326573,4.96858909,3119.9,3119.2,1.79752045]
[1767901327599,4.96858909,3119.9,3119.2,0.80966558]
[1767901327798,4.96858909,3119.9,3119.1,3.9420716]
[1767901329096,4.96858909,3119.9,3119.1,0.73607154]
[1767901329896,0.99224691,3119.8,3119.1,0.73607154]
[1767901330293,0.99224691,3119.6,3119.0,0.002]
[1767901330895,0.99324691,3119.6,3119.0,0.002]
[1767901331275,4.19788883,3119.5,3119.0,0.002]
[1767901332591,0.99224691,3119.5,3119.0,0.002]
[1767901333000,3.20657433,3119.6,3119.0,0.002]
[1767901333001,0.001,3119.6,3119.0,0.98985487]
[1767901333211,0.001,3119.6,3119.2,0.98785487]
[1767901333409,1.83324691,3120.1,3119.4,0.98785487]
[1767901333612,3.2071815,3120.0,3119.4,0.98785487]
[1767901334914,3.2071815,3120.0,3119.0,7.12176606]
[1767901334915,0.99224691,3119.9,3119.0,1.69738596]
[1767901335481,4.19758058,3119.8,3119.0,1.69738596]
[1767901335876,3.20533367,3119.8,3119.2,0.98785487]
[1767901336311,0.002,3120.0,3119.2,0.98785487]
[1767901336609,3.20716675,3120.0,3119.2,0.98785487]
[1767901337880,3.20716675,3120.0,3119.2,4.19380496]
[1767901338230,3.20716675,3120.0,3119.3,0.98785487]
[1767901338526,3.20716675,3120.0,3119.4,0.4193805]
[1767901340296,3.20716675,3120.0,3119.3,0.98785487]
[1767901341395,7.40458041,3120.0,3119.1,1.47821485]
[1767901341596,0.99224691,3119.9,3119.1,1.47821485]
[1767901341818,0.99224691,3119.7,3119.1,0.49035998]
[1767901342315,0.99224691,3119.6,3119.0,0.002]
[1767901342520,0.99224691,3119.5,3119.0,0.002]
[1767901344741,3.20574469,3119.4,3119.0,0.002]
[1767901345030,4.1979916,3119.4,3119.0,0.002]
[1767901345637,3.20574469,3119.4,3119.0,0.002]
[1767901346538,0.99224691,3119.3,3119.0,0.002]
[1767901347637,0.99224691,3119.3,3118.5,0.002]
[1767901347940,0.99224691,3119.1,3118.5,0.002]
[1767901349244,7.07752202,3119.0,3118.5,0.002]
[1767901349647,0.99224691,3118.9,3118.5,0.002]
[1767901349843,2.01860485,3118.9,3118.5,0.002]
[1767901350325,0.99024692,3118.9,3118.5,0.002]
[1767901351869,7.07745587,3119.1,3118.5,0.002]
[1767901352564,0.98083458,3119.0,3118.5,0.002]
[1767901353964,4.18683309,3119.2,3118.5,0.002]
[1767901354268,0.98083458,3119.1,3118.5,0.002]
[1767901354655,1.80220576,3119.1,3118.5,0.002]
[1767901356668,1.82183458,3119.3,3118.5,0.9207937]
[1767901357058,1.82183458,3119.3,3118.8,0.002]
[1767901357446,1.02837259,3119.4,3118.8,0.002]
[1767901357647,6.46,3119.5,3118.8,0.9207937]
[1767901358043,6.46,3119.5,3119.1,0.9187937]
[1767901358278,6.46,3119.5,3119.2,4.12474394]
[1767901358462,0.001,3119.6,3119.3,0.9187937]
[1767901358667,0.001,3119.6,3119.3,1.65187328]
[1767901358855,0.001,3119.6,3119.4,0.9187937]
[1767901362357,0.001,3119.6,3119.3,0.73307958]
[1767901362759,0.001,3119.6,3119.2,0.9187937]
[1767901363081,0.001,3119.6,3119.0,4.12488232]
[1767901364290,0.001,3119.6,3119.1,3.20604258]
[1767901365203,0.001,3119.6,3119.0,4.1249001]
[1767901365503,0.001,3119.6,3119.0,4.9659001]
[1767901365691,0.001,3119.6,3119.1,0.49659001]
[1767901366803,0.001,3119.6,3119.1,1.41538371]
[1767901367297,0.001,3119.6,3119.1,4.62141675]
[1767901367502,0.001,3119.6,3119.1,1.41538371]
[1767901367804,0.001,3119.6,3119.1,0.9187937]
[1767901369003,0.001,3119.6,3119.1,4.12481773]
[1767901369807,0.001,3119.3,3119.1,4.12481773]
[1767901371177,0.001,3119.3,3118.9,7.33129835]
[1767901371822,0.001,3119.3,3119.0,0.9187937]
[1767901372134,0.001,3119.3,3119.1,1.65192354]
[1767901373010,0.98083458,3119.8,3119.1,1.65192354]
[1767901373734,0.98083458,3119.8,3119.2,3.20595024]
[1767901374941,0.002,3120.0,3119.3,0.9187937]
[1767901375314,0.98283458,3120.0,3119.2,6.41190048]
[1767901375544,0.98283458,3120.0,3119.3,0.8063824]
[1767901375737,0.98283458,3120.0,3119.3,4.01214457]
[1767901376338,4.1879639,3120.0,3119.3,4.01214457]
[1767901376640,0.98083458,3119.9,3119.3,0.8063824]
[1767901377723,0.002,3120.0,3119.3,4.93093337]
[1767901377916,0.98083458,3120.0,3119.4,0.49309334]
[1767901381649,0.98083458,3120.2,3119.4,7.82337641]
[1767901381953,0.98083458,3120.2,3119.4,4.61763172]
[1767901382114,0.98083458,3120.2,3119.4,3.69883802]
[1767901382511,0.98083458,3120.2,3119.4,0.49309334]
[1767901382741,0.96504616,3120.1,3119.4,3.6988363]
[1767901383245,3.20504148,3120.1,3119.4,3.6988363]
[1767901383417,0.96504616,3120.0,3119.4,3.6988363]
[1767901384144,0.001,3119.7,3119.4,3.6988363]
[1767901384919,0.001,3119.7,3119.5,0.92097998]
[1767901385116,0.002,3120.3,3119.8,0.92097998]
[1767901385352,4.16961151,3120.6,3119.8,0.92097998]
[1767901385519,0.96504616,3120.5,3119.8,0.92097998]
[1767901385930,0.96504616,3120.5,3119.6,1.45313855]
[1767901387144,4.16967904,3120.5,3119.7,3.20543642]
[1767901387348,4.16967904,3120.5,3119.7,3.99184947]
[1767901388363,0.97971587,3120.1,3119.3,0.002]
[1767901388549,0.97971587,3120.1,3119.4,3.20572648]
[1767901388727,0.97971587,3120.1,3119.6,3.20546252]
[1767901389428,0.97971587,3120.0,3119.3,0.002]
[1767901391332,4.1849468,3119.9,3119.3,0.002]
[1767901394263,0.97971587,3119.8,3119.3,0.002]
[1767901395954,1.71872565,3119.9,3119.3,0.002]
[1767901396258,0.97971587,3119.9,3119.3,0.002]
[1767901396939,0.97971587,3119.9,3119.6,0.002]
[1767901397472,4.18496847,3119.9,3119.6,0.002]
[1767901399163,0.97971587,3120.1,3119.6,0.002]
[1767901399345,4.18479483,3120.1,3119.6,0.002]
[1767901399546,0.50257948,3120.0,3119.6,0.002]
[1767901401234,4.18478766,3120.1,3119.6,0.002]
[1767901402067,0.97971587,3120.1,3119.6,0.002]
[1767901402273,0.841,3120.2,3119.6,0.99315692]
[1767901402496,4.18438731,3120.5,3119.7,0.99115692]
[1767901403792,0.97971587,3120.4,3119.6,0.002]
[1767901403995,1.6439612,3120.3,3119.6,0.002]
[1767901404494,0.97971587,3120.0,3119.6,0.002]
[1767901405268,0.97971587,3120.0,3119.3,0.002]
[1767901407101,0.97971587,3119.7,3119.3,0.002]
[1767901407265,0.97971587,3119.7,3119.0,0.002]
[1767901407595,0.97971587,3119.6,3119.0,0.002]
[1767901407792,0.97771588,3119.6,3119.0,0.002]
[1767901408696,0.97571589,3119.6,3119.0,0.002]
[1767901411308,0.97971587,3119.5,3119.0,0.002]
[1767901412387,0.9790017,3119.4,3119.0,0.002]
[1767901412702,0.9790017,3119.4,3118.8,0.002]
[1767901412703,0.9790017,3119.0,3118.8,0.002]
[1767901412889,3.86025966,3118.9,3118.5,0.002]
[1767901413077,2.88125796,3118.9,3118.5,0.002]
[1767901413576,0.9790017,3118.3,3117.9,0.002]
[1767901413782,2.87925797,3118.0,3117.3,4.18407641]
[1767901414080,0.16734968,3117.8,3117.4,0.97421006]
[1767901414493,0.16734968,3117.8,3117.4,4.18199871]
[1767901415605,0.16734968,3117.8,3117.5,0.97421006]
[1767901416590,0.16734968,3117.8,3117.6,3.20759558]
[1767901416784,0.16734968,3117.8,3117.6,4.18180564]
[1767901417000,0.16734968,3117.8,3117.5,3.20766961]
[1767901417201,0.16734968,3117.8,3117.3,0.002]
[1767901417401,0.16734968,3117.8,3117.4,3.20774369]
[1767901418002,0.16734968,3117.8,3117.5,3.20768033]
[1767901418734,0.16734968,3117.8,3117.3,0.002]
[1767901418735,1.14635138,3117.8,3117.3,0.002]
[1767901418953,0.40276093,3117.7,3117.3,0.002]
[1767901419726,1.14635138,3117.8,3117.3,0.002]
[1767901420026,0.16734968,3117.8,3117.3,0.002]
[1767901420226,0.9790017,3118.0,3117.3,0.002]
[1767901420526,0.9790017,3118.0,3117.3,3.20990427]
[1767901421330,0.9790017,3118.0,3117.3,0.002]
[1767901421331,4.18619409,3118.0,3117.3,0.002]
[1767901421624,1.71831908,3118.0,3117.3,0.002]
[1767901421835,4.92550958,3118.0,3117.3,0.002]
[1767901422034,0.9790017,3117.9,3117.3,0.002]
[1767901422829,0.9790017,3117.9,3117.6,0.002]
[1767901425737,0.9790017,3117.9,3117.7,0.842]
[1767901425940,0.78067919,3117.8,3117.7,0.842]
[1767901427834,0.9790017,3117.9,3117.7,0.842]
[1767901428209,0.9790017,3117.9,3117.7,0.77356402]
[1767901428636,0.9790017,3117.8,3117.7,0.77356402]
[1767901428821,0.9790017,3117.8,3117.4,0.842]
[1767901430141,4.18640935,3117.8,3117.4,0.842]
[1767901430320,0.9790017,3117.8,3117.4,0.842]
[1767901431113,4.92555957,3118.0,3117.4,0.842]
[1767901431350,4.18605496,3118.2,3117.5,0.97421006]
[1767901435741,0.001,3117.9,3117.5,0.97421006]
[1767901438140,0.001,3117.9,3117.4,0.842]
[1767901440383,0.001,3117.9,3117.4,4.04977921]
[1767901441095,0.001,3117.9,3117.4,5.02398927]
[1767901442152,0.001,3117.9,3117.4,1.81621006]
[1767901442581,0.001,3117.9,3117.4,0.842]
[1767901445973,0.001,3117.9,3117.3,4.16180388]
[1767901446185,0.001,3117.9,3117.4,0.842]
[1767901447697,0.001,3117.9,3117.4,4.04980112]
[1767901447898,0.001,3117.9,3117.5,0.94461747]
[1767901448399,0.001,3117.9,3117.4,1.66337]
[1767901449003,0.001,3117.9,3117.4,0.82137]
[1767901449300,0.001,3117.9,3117.3,0.94661747]
[1767901449301,0.91352633,3117.8,3117.3,0.002]
[1767901449501,0.91352633,3117.8,3117.4,0.842]
[1767901450381,0.91352633,3117.7,3117.4,0.842]
[1767901451704,3.20740383,3117.8,3117.4,0.842]
[1767901451920,4.12186609,3117.9,3117.4,0.842]
[1767901452204,5.14290036,3117.9,3117.4,0.842]
[1767901453805,1.02203427,3117.9,3117.4,0.842]
[1767901454004,3.20829502,3117.9,3117.4,0.842]
[1767901454211,0.91452633,3117.9,3117.4,0.842]
[1767901454430,0.001,3117.9,3117.4,1.78661747]
[1767901454781,0.001,3117.9,3117.4,0.842]
[1767901455609,0.91452633,3117.9,3117.4,0.842]
[1767901456815,0.91352633,3117.8,3117.3,0.002]
[1767901457106,0.91352633,3117.8,3117.4,0.842]
[1767901457316,0.91352633,3117.7,3117.3,0.002]
[1767901457514,0.91352633,3117.7,3117.4,0.842]
[1767901458529,0.91352633,3117.7,3117.3,0.002]
[1767901460721,4.12102663,3117.7,3117.3,0.002]
[1767901460926,0.001,3117.6,3117.3,0.002]
[1767901465023,0.91452633,3117.6,3117.3,0.002]
[1767901465808,0.001,3117.6,3117.3,0.002]
[1767901467829,0.91452633,3117.6,3117.3,0.002]
[1767901470535,3.79578429,3117.6,3117.2,0.002]
[1767901470828,0.70032814,3117.5,3117.2,0.002]
[1767901471642,1.61385447,3117.5,3117.2,0.844]
[1767901472738,4.82158133,3117.5,3117.2,0.002]
[1767901472924,0.98073428,3117.4,3117.2,0.844]
[1767901473127,0.70032814,3117.5,3117.2,0.844]
[1767901473326,0.70032814,3117.5,3117.3,0.002]
[1767901478047,0.001,3117.6,3117.3,0.97527443]
[1767901478522,0.001,3117.6,3117.3,0.002]
[1767901479857,0.001,3117.6,3115.0,3.21026607]
[1767901479858,0.98073428,3116.1,3115.0,3.21026607]
[1767901480032,0.98073428,3116.1,3114.2,2.88423287]
[1767901480033,2.88423287,3115.9,3115.2,0.63508547]
[1767901480221,0.98073428,3115.8,3115.3,0.842]
[1767901481127,0.98073428,3115.8,3115.4,0.842]
[1767901482042,3.20955162,3115.7,3115.4,0.842]
[1767901484251,3.20955162,3115.7,3114.6,3.21064515]
[1767901484252,0.98073428,3115.4,3114.6,0.63508547]
[1767901484460,0.98073428,3115.4,3114.7,0.842]
[1767901484638,0.98073428,3115.4,3114.6,0.63508547]
[1767901484843,0.98073428,3115.4,3114.7,1.47708547]
[1767901485854,0.98073428,3115.4,3115.0,0.002]
[1767901486216,4.19066142,3115.4,3115.0,0.002]
[1767901487040,4.19066142,3115.4,3115.1,0.842]
[1767901488950,0.98073428,3115.3,3115.1,0.842]
[1767901490854,0.98073428,3115.5,3115.1,0.842]
[1767901491025,4.19052915,3115.5,3115.1,0.842]
[1767901491978,0.98073428,3115.7,3115.1,0.842]
[1767901493056,0.98073428,3115.9,3115.1,1.47708547]
[1767901493423,0.98073428,3115.9,3115.1,0.842]
[1767901494352,0.98073428,3115.8,3115.1,0.842]
[1767901495355,4.19025613,3115.8,3115.1,0.842]
[1767901498841,4.19007989,3115.9,3115.2,3.21006634]
[1767901499052,4.19007989,3115.9,3115.4,0.002]
[1767901499360,4.19007989,3115.9,3115.5,0.842]
[1767901500137,0.98073428,3115.9,3115.5,0.842]
[1767901500539,4.19009039,3115.9,3115.5,0.842]
[1767901501168,4.19009039,3115.9,3115.6,0.842]
[1767901501525,0.98073428,3116.4,3115.6,0.842]
[1767901501860,0.98073428,3116.3,3115.6,0.842]
[1767901504175,3.20903664,3116.2,3115.4,0.63708547]
[1767901504467,0.99759251,3116.1,3115.5,0.842]
[1767901505268,3.20898552,3116.3,3115.5,0.842]
[1767901505269,4.20657803,3116.3,3115.5,1.47708547]
[1767901505475,0.99759251,3116.2,3115.6,0.78987811]
[1767901507146,0.99759251,3116.2,3115.6,3.99953187]
[1767901507671,0.91350346,3116.1,3115.4,0.002]
[1767901507836,0.91350346,3115.5,3115.0,0.002]
[1767901508160,0.91350346,3115.5,3115.1,0.842]
[1767901508161,0.80680876,3115.5,3115.1,0.842]
[1767901511154,0.73609738,3115.5,3115.1,0.842]
[1767901512384,0.73609738,3115.5,3115.0,0.002]
[1767901512583,0.73609738,3115.5,3115.2,0.842]
[1767901513145,0.73609738,3115.5,3115.0,0.002]
[1767901513350,0.73609738,3115.5,3115.1,0.842]
[1767901513765,0.91350346,3115.4,3115.2,0.842]
[1767901513965,0.91350346,3115.4,3115.3,0.842]
[1767901515534,0.91350346,3115.4,3115.0,0.002]
[1767901515683,0.001,3115.9,3115.4,0.81249155]
[1767901515882,6.46,3116.1,3115.5,4.4760379]
[1767901516124,0.91350346,3116.2,3115.5,4.4760379]
[1767901516417,0.91350346,3116.5,3115.6,1.65449155]
[1767901517505,0.91350346,3116.5,3115.7,0.81249155]
[1767901517891,0.91350346,3116.5,3115.8,3.20944861]
[1767901518228,0.91350346,3116.5,3115.9,0.40219402]
[1767901518387,4.1222516,3116.5,3115.9,0.40219402]
[1767901519719,0.91350346,3116.5,3115.9,0.40219402]
[1767901519925,0.91350346,3116.5,3116.0,0.842]
[1767901521923,0.91350346,3116.4,3115.9,0.40219402]
[1767901522137,0.91350346,3116.4,3116.1,0.842]
[1767901522346,0.91350346,3116.4,3116.2,0.842]
[1767901523140,4.12213744,3116.6,3116.2,0.842]
[1767901524046,0.91350346,3116.6,3116.2,0.842]
[1767901524245,4.1219454,3116.8,3116.2,0.842]
[1767901524445,0.91350346,3116.7,3116.2,0.842]
[1767901525641,0.91350346,3116.7,3115.9,3.20928983]
[1767901525853,0.91350346,3116.7,3116.0,1.24417814]
[1767901526048,0.91350346,3116.6,3116.0,1.24417814]
[1767901526506,0.91350346,3116.6,3116.0,0.40217814]
[1767901526712,0.91350346,3116.6,3116.1,0.842]
[1767901528751,0.91350346,3116.2,3115.5,3.20966303]
[1767901528946,0.91350346,3116.2,3115.6,1.48395235]
[1767901529723,0.91350346,3116.2,3115.7,0.842]
[1767901529960,0.91350346,3116.1,3115.7,0.842]
[1767901531258,0.91350346,3116.3,3115.7,4.05154366]
[1767901531654,0.91350346,3116.3,3115.7,0.842]
[1767901533152,0.93765328,3116.2,3115.7,0.842]
[1767901535164,0.93765328,3116.4,3115.7,4.05154521]
[1767901535459,0.93765328,3116.4,3115.7,0.842]
[1767901536140,4.14632139,3116.6,3115.9,0.81249155]
[1767901536334,0.001,3116.1,3115.9,0.81249155]
[1767901536533,0.001,3116.1,3115.8,2.88628556]
[1767901536927,0.001,3116.1,3115.9,0.842]
[1767901537254,0.001,3116.1,3115.6,3.20962588]
[1767901537255,0.001,3116.1,3116.0,0.842]
[1767901537426,0.001,3116.1,3115.6,3.20962995]
[1767901537629,0.001,3116.1,3116.0,0.842]
[1767901539331,0.001,3116.1,3115.5,4.02217906]
[1767901539549,0.93865328,3116.1,3115.6,0.842]
[1767901540055,0.001,3116.1,3115.7,4.02200358]
[1767901540363,0.001,3116.1,3115.7,3.20951203]
[1767901541362,0.001,3116.1,3115.7,0.77502891]
[1767901544550,0.001,3116.1,3115.2,4.0224773]
[1767901544551,0.93865328,3116.1,3115.2,4.0224773]
[1767901544765,0.93765328,3116.0,3115.3,0.842]
[1767901545781,0.93765328,3116.0,3115.3,4.05195069]
[1767901545982,3.20926515,3116.0,3115.3,4.86444224]
[1767901546188,3.20926515,3116.0,3115.3,4.02244224]
[1767901546385,3.20926515,3116.0,3115.4,0.842]
[1767901548975,3.20926515,3116.0,3115.5,0.842]
[1767901549777,3.20926515,3116.0,3115.3,4.02444229]
[1767901549963,3.20926515,3116.0,3115.4,0.842]
[1767901551182,0.93765328,3115.9,3115.4,0.842]
[1767901551383,0.93765328,3115.9,3115.3,3.21195074]
[1767901551679,0.93765328,3115.9,3115.4,0.842]
[1767901552078,0.93765328,3115.9,3115.5,0.842]
[1767901555996,0.93765328,3115.8,3115.3,0.002]
[1767901556183,6.83356155,3115.9,3115.4,0.842]
[1767901556184,0.93765328,3115.6,3115.4,0.842]
[1767901557178,0.93765328,3115.5,3115.4,0.842]
[1767901562516,0.93765328,3115.5,3115.4,0.844]
[1767901563586,1.35411922,3115.9,3115.4,0.844]
[1767901563818,3.20949689,3115.8,3115.4,0.844]
[1767901568416,0.001,3116.1,3115.7,2.88628556]
[1767901568605,0.001,3116.1,3115.6,0.81249155]
[1767901569203,3.21014796,3116.1,3115.6,0.81249155]
[1767901569623,0.001,3116.1,3115.6,0.81249155]
[1767901570320,0.001,3116.1,3115.4,4.05377722]
[1767901570621,0.001,3116.1,3115.5,1.50649783]
[1767901572030,0.001,3116.1,3115.7,3.69877711]
[1767901572333,0.99236046,3116.6,3115.9,2.88628556]
[1767901572635,3.2084845,3116.8,3116.1,3.69877711]
[1767901573127,4.2007053,3116.9,3116.1,3.69877711]
[1767901573296,4.2007053,3116.9,3116.1,4.15285482]
[1767901574935,0.99236046,3116.8,3116.1,1.26656926]
[1767901577404,4.20081164,3116.8,3116.1,1.26656926]
[1767901577604,4.20081164,3116.8,3116.1,4.47570747]
[1767901578635,4.20081164,3116.8,3116.1,1.26656926]
[1767901578834,4.20081164,3116.8,3116.2,0.53177637]
[1767901580230,3.20823352,3117.0,3116.2,1.34426792]
[1767901580231,3.20836251,3116.9,3116.2,1.34426792]
[1767901580405,3.20836251,3116.9,3116.2,4.55330392]
[1767901580604,3.20836251,3116.9,3116.3,2.88628556]
[1767901581024,0.99236046,3117.2,3116.5,2.88628556]
[1767901581212,4.20038509,3117.2,3116.6,1.21187771]
[1767901581912,0.99236046,3117.2,3116.6,1.21187771]
[1767901582108,3.20743237,3117.8,3116.6,1.21187771]
[1767901582109,0.99336046,3117.9,3117.1,6.58506267]
[1767901582333,4.20068871,3117.9,3117.3,2.88628556]
[1767901582634,4.20068871,3117.9,3117.2,0.842]
[1767901582635,0.99236046,3117.8,3117.2,0.842]
[1767901583913,0.99236046,3117.8,3117.2,4.04999674]
[1767901585234,0.99236046,3117.8,3117.2,5.14568394]
[1767901586224,0.001,3117.9,3117.4,3.69877711]
[1767901586505,0.001,3117.9,3117.4,0.81249155]
[1767901586725,0.001,3117.9,3117.2,8.84446105]
[1767901587636,0.001,3117.9,3117.4,0.002]
[1767901587939,0.001,3117.6,3117.4,0.002]
[1767901588101,0.001,3117.6,3117.4,0.75517638]
[1767901588611,0.001,3117.6,3117.5,0.842]
[1767901588938,0.001,3117.6,3117.5,0.84078104]
[1767901590442,0.001,3117.6,3117.0,0.002]
[1767901590443,0.99355618,3117.5,3117.0,0.002]
[1767901590635,0.001,3117.6,3117.3,2.88628556]
[1767901590838,0.001,3117.6,3117.4,0.36987771]
[1767901591250,0.001,3117.6,3117.5,0.842]
[1767901594639,0.94200103,3117.5,3117.0,0.002]
[1767901594855,0.94200103,3117.5,3117.1,0.842]
[1767901596039,0.94200103,3117.5,3117.0,0.002]
[1767901596240,0.94200103,3117.5,3117.1,0.842]
[1767901596409,3.20780137,3117.4,3117.0,0.002]
[1767901596614,0.94200103,3117.3,3116.3,0.81249155]
[1767901596811,0.94200103,3117.3,3116.4,4.05078132]
[1767901597613,0.94200103,3117.3,3115.9,0.81249155]
[1767901597814,0.94200103,3116.7,3116.0,0.842]
[1767901598118,0.94200103,3116.7,3116.1,0.842]
[1767901598310,0.94200103,3116.7,3116.1,1.00744915]
[1767901598932,0.94200103,3116.6,3116.1,1.00744915]
[1767901599338,0.94200103,3116.6,3116.1,0.16544915]
[1767901599535,0.94200103,3116.6,3116.2,0.842]
[1767901600216,0.94200103,3116.6,3116.3,0.842]
[1767901601615,4.15072876,3116.5,3116.4,0.002]
[1767901602020,0.94200103,3116.4,3115.8,0.002]
[1767901602244,0.94200103,3116.4,3115.9,0.842]
[1767901603649,0.94200103,3116.3,3115.9,0.842]
[1767901603854,0.94200103,3116.3,3116.0,0.842]
[1767901606842,0.94200103,3116.3,3115.8,0.002]
[1767901607053,3.2089025,3116.4,3115.9,0.842]
[1767901608338,4.15076928,3116.5,3115.9,0.842]
[1767901608541,3.20862977,3116.6,3116.0,0.81249155]
[1767901609928,3.20862977,3116.6,3115.9,1.00764915]
[1767901611056,4.1506308,3116.6,3115.9,1.00764915]
[1767901611962,7.35926057,3116.6,3115.9,1.00764915]
[1767901612457,0.94200103,3116.5,3115.9,0.842]
[1767901612956,0.94200103,3116.5,3115.8,0.002]
[1767901613148,0.94200103,3116.5,3116.0,0.842]
[1767901614453,0.94200103,3116.3,3116.2,0.002]
[1767901615228,0.94200103,3116.1,3115.9,0.002]
[1767901615643,0.94200103,3116.1,3116.0,0.842]
[1767901615860,0.94200103,3117.0,3116.0,1.65449155]
[1767901616049,0.94200103,3116.8,3116.1,0.842]
[1767901616437,4.15052286,3116.7,3115.9,0.002]
[1767901616762,0.94200103,3116.6,3116.2,0.842]
[1767901620468,4.1504533,3116.8,3116.2,0.842]
[1767901621070,0.94200103,3116.7,3116.2,0.842]
[1767901621572,0.94200103,3117.2,3116.3,3.6970434]
[1767901621744,0.94200103,3117.2,3116.4,0.81249155]
[1767901622065,0.94200103,3117.2,3116.4,1.90820217]
[1767901623168,4.15002187,3117.2,3116.5,0.81249155]
[1767901623368,0.94200103,3117.2,3116.5,0.81249155]
[1767901623566,0.94200103,3117.2,3116.4,7.5133245]
[1767901623567,3.20775188,3117.5,3116.7,0.81249155]
[1767901623872,3.20775188,3117.5,3116.8,1.65449155]
[1767901624262,4.16967559,3117.5,3116.8,1.65449155]
[1767901624866,0.96192371,3117.5,3116.8,1.65449155]
[1767901625168,0.001,3117.6,3116.9,3.20831595]
[1767901625370,0.96292371,3117.6,3116.9,4.0208075]
[1767901626470,0.001,3117.6,3116.9,4.0208075]
[1767901628642,0.001,3117.1,3116.9,4.0208075]
[1767901628838,0.93997263,3117.6,3117.0,0.53167118]
[1767901629838,0.93997263,3117.9,3117.3,2.88455185]
[1767901630072,0.93897263,3118.8,3117.4,2.88455185]
[1767901630267,3.82352448,3118.6,3117.3,4.14486902]
[1767901630475,0.93897263,3118.5,3117.3,3.20781874]
[1767901630768,0.93897263,3118.3,3117.3,3.20781874]
[1767901631376,0.93897263,3118.3,3117.4,0.93705028]
[1767901631669,0.93897263,3118.3,3117.5,0.93705028]
[1767901631872,0.93897263,3118.3,3117.6,0.842]
[1767901632454,0.93897263,3118.2,3117.6,0.842]
[1767901632661,0.93897263,3118.1,3117.6,0.842]
[1767901632854,0.93897263,3118.1,3117.7,0.842]
[1767901634074,0.93897263,3118.7,3117.7,0.842]
[1767901634988,0.93897263,3118.5,3117.5,4.14472806]
[1767901635177,0.93897263,3118.5,3117.6,0.842]
[1767901635357,0.93897263,3118.3,3117.6,0.842]
[1767901636283,0.93897263,3118.3,3117.6,4.04957086]
[1767901637288,0.93897263,3118.2,3117.6,0.842]
[1767901637671,0.93897263,3118.2,3117.6,4.04957901]
[1767901638185,0.93897263,3118.2,3117.6,0.842]
[1767901638486,1.42707866,3118.2,3117.6,0.842]
[1767901640188,4.63408299,3118.2,3117.6,0.842]
[1767901640657,1.42707866,3118.2,3117.6,0.842]
[1767901641590,0.001,3117.9,3117.6,0.842]
[1767901642093,0.001,3117.9,3117.6,4.04958623]
[1767901642502,0.001,3117.9,3117.6,0.842]
[1767901643002,0.001,3117.9,3117.6,4.98662828]
[1767901643213,0.77797263,3118.8,3118.0,0.93705028]
[1767901643375,0.77797263,3118.8,3118.1,0.842]
[1767901644096,0.77797263,3118.8,3118.1,4.04904894]
[1767901644394,0.77797263,3118.8,3118.1,4.98609922]
[1767901644909,0.93897263,3118.7,3117.9,0.93705028]
[1767901645082,0.93897263,3118.6,3118.0,0.842]
[1767901647014,0.93897263,3118.6,3117.6,0.81944795]
[1767901647015,0.93897263,3118.5,3117.6,0.81944795]
[1767901647301,0.93897263,3118.5,3117.7,0.842]
[1767901649275,4.14574533,3118.4,3117.7,0.842]
[1767901649595,4.88099708,3118.4,3117.7,0.842]
[1767901650671,8.08776978,3118.4,3117.7,0.842]
[1767901651312,4.1458598,3118.3,3117.7,0.842]
[1767901652175,0.93897263,3118.2,3117.5,3.20763909]
[1767901652377,0.93897263,3118.1,3117.8,0.842]
[1767901652810,0.93897263,3118.1,3116.9,0.98354406]
[1767901653011,0.99101403,3117.8,3117.0,0.842]
[1767901653184,4.19850673,3117.7,3117.0,0.842]
[1767901653688,0.99101403,3117.6,3117.0,0.842]